fUSD/lending_fUSD_20250113
["ID","MTS","AMOUNT","RATE_DAILY","PERIOD"]
[348719653,1736748649700,-500.0,0.00011094,2]
[348719654,1736748649710,-717.623348,0.00011094,2]
[348719655,1736748649719,-709.26,0.00011094,2]
[348719656,1736748649729,-1904.22,0.00011094,2]
[348719657,1736748649739,-781.01624,0.00011094,2]
[348719658,1736748649749,-556.88,0.00011094,2]
[348719659,1736748649758,-500.0,0.00011094,2]
[348719660,1736748649768,-500.0,0.00011094,2]
[348719661,1736748649778,-500.0,0.00011094,2]
[348719662,1736748649788,-500.0,0.00011094,2]
[348719663,1736748649798,-761.58,0.00011094,2]
[348719664,1736748649808,-1943.01,0.00011094,2]
[348719665,1736748649819,-599.84,0.00011094,2]
[348719666,1736748649828,-1173.0,0.00011095,2]
[348719667,1736748649838,-500.26,0.00011095,2]
[348719668,1736748649848,-500.0,0.00011095,2]
[348719669,1736748649858,-579.06,0.00011095,2]
[348719670,1736748649867,-500.0,0.00011095,2]
[348719671,1736748649877,-538.74,0.00011095,2]
[348719672,1736748649887,-648.0,0.00011095,2]
[348719673,1736748649897,-500.0,0.00011095,2]
[348719674,1736748649907,-593.16,0.00011095,2]
[348719675,1736748649917,-500.0,0.00011095,2]
[348719676,1736748649927,-561.03,0.00011095,2]
[348719677,1736748649938,-611.26016063,0.00011095,2]
[348719678,1736748649948,-545.75,0.00011095,2]
[348719679,1736748649958,-598.34,0.00011095,2]
[348719680,1736748649968,-557.95,0.00011095,2]
[348719681,1736748649978,-567.25,0.00011095,2]
[348719682,1736748649989,-500.0,0.00011095,2]
[348719683,1736748649999,-500.0,0.00011095,2]
[348719684,1736748650008,-2860.34,0.00011095,2]
[348719685,1736748650018,-690.58,0.00011095,2]
[348719686,1736748650028,-500.0,0.00011095,2]
[348719687,1736748650038,-656.31,0.00011095,2]
[348719688,1736748650048,-672.9,0.00011095,2]
[348719689,1736748650058,-500.0,0.00011095,2]
[348719690,1736748650068,-500.0,0.00011095,2]
[348719691,1736748650078,-500.0,0.00011095,2]
[348719692,1736748650088,-500.0,0.00011095,2]
[348719693,1736748650098,-828.54,0.00011095,2]
[348719694,1736748650108,-1242.39,0.00011095,2]
[348719695,1736748650119,-500.0,0.00011095,2]
[348719696,1736748650129,-1005.42,0.00011095,2]
[348719697,1736748650139,-1234.58,0.00011095,2]
[348719698,1736748650150,-1033.53,0.00011095,2]
[348719699,1736748650160,-844.52,0.00011095,2]
[348719700,1736748650171,-500.0,0.00011095,2]
[348719701,1736748650181,-1923.89,0.00011095,2]
[348719702,1736748650192,-827.39,0.00011095,2]
[348719703,1736748650202,-828.11,0.000111,2]
[348719704,1736748650211,-616.42,0.00011196,2]
[348719705,1736748650222,-847.96,0.00011196,2]
[348719706,1736748650232,-3583.81,0.00011196,2]
[348719707,1736748650241,-500.0,0.00011196,2]
[348719708,1736748650251,-500.0,0.00011196,2]
[348719709,1736748650261,-690.81,0.00011196,2]
[348719710,1736748650272,-1173.49,0.00011196,2]
[348719711,1736748650282,-1307.94,0.00011196,2]
[348719712,1736748650293,-2121.67,0.00011196,2]
[348719713,1736748650303,-500.0,0.00011196,2]
[348719714,1736748650313,-588.81,0.00011196,2]
[348719715,1736748650323,-511.26,0.00011196,2]
[348719716,1736748650336,-929.02,0.00011196,2]
[348719717,1736748650346,-1095.98,0.00011196,2]
[348719718,1736748650356,-831.36,0.00011196,2]
[348719719,1736748650367,-1591.75,0.00011196,2]
[348719720,1736748650379,-749.68,0.00011196,2]
[348719721,1736748650389,-500.0,0.00011196,2]
[348719722,1736748650399,-749.66,0.00011203,2]
[348719723,1736748650412,-617.27,0.00011203,2]
[348719724,1736748650423,-500.0,0.00011203,2]
[348719725,1736748650432,-862.85,0.00011203,2]
[348719726,1736748650443,-500.0,0.00011203,2]
[348719727,1736748650453,-663.9,0.00011204,2]
[348719728,1736748650463,-182.5157555,0.00011269,2]
[348719729,1736748650472,-152.63,0.0001132,2]
[348719730,1736748650484,-1534.95,0.00011366,2]
[348719731,1736748650495,-793.85,0.00011366,2]
[348719732,1736748650708,-613.27,0.00011366,2]
[348719733,1736748650726,-1839.74,0.00011366,2]
[348719734,1736748650736,-588.59,0.00011366,2]
[348719735,1736748650746,-284.08531299,0.00011366,2]
[348719736,1736748650755,-1179.2,0.00011366,2]
[348719737,1736748650765,-500.0,0.00011366,2]
[348719738,1736748650775,-155.95754482,0.00011366,2]
[348719739,1736748650786,-561.11,0.00011366,2]
[348719740,1736748650795,-500.0,0.00011366,2]
[348719741,1736748650805,-1479.56,0.00011366,2]
[348719742,1736748650814,-585.79,0.00011367,2]
[348719743,1736748650824,-500.0,0.00011367,2]
[348719744,1736748650833,-500.0,0.00011367,2]
[348719745,1736748650843,-500.0,0.00011367,2]
[348719746,1736748650852,-500.0,0.00011367,2]
[348719747,1736748650862,-500.0,0.00011367,2]
[348719748,1736748650872,-500.0,0.00011367,2]
[348719749,1736748650882,-500.0,0.00011367,2]
[348719750,1736748650891,-500.0,0.00011367,2]
[348719751,1736748650901,-500.0,0.00011367,2]
[348719752,1736748650911,-500.0,0.00011367,2]
[348719753,1736748650921,-500.0,0.00011367,2]
[348719754,1736748650930,-500.0,0.00011367,2]
[348719755,1736748650939,-500.0,0.00011367,2]
[348719756,1736748650949,-500.0,0.00011367,2]
[348719757,1736748650958,-500.0,0.00011367,2]
[348719758,1736748650969,-500.0,0.00011367,2]
[348719759,1736748650979,-500.0,0.00011367,2]
[348719760,1736748650988,-500.0,0.00011367,2]
[348719761,1736748650998,-500.0,0.00011367,2]
[348719762,1736748651007,-648.67049802,0.00011367,2]
[348719763,1736748651017,-500.0,0.00011367,2]
[348719764,1736748651026,-500.0,0.00011367,2]
[348719765,1736748651036,-500.0,0.00011367,2]
[348719766,1736748651045,-500.0,0.00011367,2]
[348719767,1736748651055,-510.22,0.00011367,2]
[348719768,1736748651064,-500.0,0.00011367,2]
[348719769,1736748651073,-500.0,0.00011367,2]
[348719770,1736748651083,-500.0,0.00011367,2]
[348719771,1736748651092,-500.0,0.00011367,2]
[348719772,1736748651102,-500.0,0.00011367,2]
[348719773,1736748651112,-500.0,0.00011367,2]
[348719774,1736748651123,-500.0,0.00011367,2]
[348719775,1736748651133,-500.0,0.00011367,2]
[348719776,1736748651143,-500.0,0.00011367,2]
[348719777,1736748651152,-500.0,0.00011367,2]
[348719778,1736748651162,-2499.79,0.00011367,2]
[348719779,1736748651171,-405.76521684,0.00011367,2]
[348719780,1736748651181,-500.0,0.00011367,2]
[348719781,1736748651190,-500.0,0.00011367,2]
[348719782,1736748651199,-500.0,0.00011367,2]
[348719783,1736748651209,-1971.39,0.00011367,2]
[348719784,1736748651218,-500.0,0.00011367,2]
[348719785,1736748651228,-500.0,0.00011367,2]
[348719786,1736748651238,-500.0,0.00011367,2]
[348719787,1736748651247,-500.0,0.00011367,2]
[348719788,1736748651256,-500.0,0.00011367,2]
[348719789,1736748651266,-1760.49,0.00011367,2]
[348719790,1736748651275,-500.0,0.00011367,2]
[348719791,1736748651285,-500.0,0.00011367,2]
[348719792,1736748651295,-500.0,0.00011367,2]
[348719793,1736748651305,-1774.52,0.00011367,2]
[348719794,1736748651314,-500.0,0.00011367,2]
[348719795,1736748651325,-500.0,0.00011367,2]
[348719796,1736748651339,-500.0,0.00011367,2]
[348719797,1736748651350,-500.0,0.00011367,2]
[348719798,1736748651360,-500.0,0.00011367,2]
[348719799,1736748651369,-500.0,0.00011367,2]
[348719800,1736748651382,-512.56,0.00011367,2]
[348719801,1736748651392,-500.0,0.00011367,2]
[348719802,1736748651403,-500.0,0.00011367,2]
[348719803,1736748651415,-500.0,0.00011367,2]
[348719804,1736748651425,-825.62,0.00011368,2]
[348719805,1736748651435,-535.55,0.00011368,2]
[348719806,1736748651444,-656.21,0.00011368,2]
[348719807,1736748651454,-831.27,0.00011368,2]
[348719808,1736748651464,-1120.56,0.00011368,2]
[348719809,1736748651473,-848.83,0.00011368,2]
[348719810,1736748651483,-2057.32,0.00011368,2]
[348719811,1736748651492,-500.0,0.00011368,2]
[348719812,1736748651502,-847.54,0.00011368,2]
[348719813,1736748651511,-1444.9,0.00011368,2]
[348719814,1736748651521,-766.22,0.00011368,2]
[348719815,1736748651531,-683.38,0.00011368,2]
[348719816,1736748651540,-921.56,0.00011368,2]
[348719817,1736748651550,-822.29,0.00011368,2]
[348719818,1736748651559,-835.42,0.00011368,2]
[348719819,1736748651569,-773.09,0.00011368,2]
[348719820,1736748651579,-673.28,0.00011368,2]
[348719821,1736748651588,-1437.23,0.00011368,2]
[348719822,1736748651597,-1973.53,0.00011368,2]
[348719823,1736748651607,-613.73,0.00011368,2]
[348719824,1736748651617,-968.03,0.00011368,2]
[348719825,1736748651626,-1992.94,0.00011368,2]
[348719826,1736748651636,-500.0,0.00011368,2]
[348719827,1736748651646,-2274.16,0.00011368,2]
[348719828,1736748651656,-717.623348,0.00011368,2]
[348719829,1736748651667,-709.26,0.00011368,2]
[348719830,1736748651677,-500.0,0.00011368,2]
[348719831,1736748651686,-1904.22,0.00011368,2]
[348719832,1736748651695,-781.01624,0.00011368,2]
[348719833,1736748651705,-556.88,0.00011368,2]
[348719834,1736748651715,-500.0,0.00011368,2]
[348719835,1736748651725,-1234.36,0.00011368,2]
[348719836,1736748651735,-500.0,0.00011368,2]
[348719837,1736748651745,-500.0,0.00011368,2]
[348719838,1736748651755,-500.0,0.00011368,2]
[348719839,1736748651765,-1497.61,0.00011368,2]
[348719840,1736748651775,-761.58,0.00011368,2]
[348719841,1736748651784,-1943.01,0.00011368,2]
[348719842,1736748651794,-599.84,0.00011368,2]
[348719843,1736748651803,-500.26,0.00011369,2]
[348719844,1736748651814,-500.0,0.00011369,2]
[348719845,1736748651824,-579.06,0.00011369,2]
[348719846,1736748651834,-500.0,0.00011369,2]
[348719847,1736748651844,-538.74,0.00011369,2]
[348719848,1736748651855,-500.0,0.00011369,2]
[348719849,1736748651865,-593.16,0.00011369,2]
[348719850,1736748651875,-500.0,0.00011369,2]
[348719851,1736748651884,-561.03,0.00011369,2]
[348719852,1736748651895,-545.75,0.00011369,2]
[348719853,1736748651904,-598.34,0.00011369,2]
[348719854,1736748651913,-557.95,0.00011369,2]
[348719855,1736748651924,-567.25,0.00011369,2]
[348719856,1736748651934,-258.49012271,0.00011369,2]
[348719857,1736748651944,-500.0,0.00011369,2]
[348719858,1736748651953,-2860.34,0.00011369,2]
[348719859,1736748651963,-690.58,0.00011369,2]
[348719860,1736748651972,-500.0,0.00011369,2]
[348719861,1736748651981,-656.31,0.00011369,2]
[348719862,1736748651990,-672.9,0.00011369,2]
[348719863,1736748652000,-500.0,0.00011369,2]
[348719864,1736748652010,-500.0,0.00011369,2]
[348719865,1736748652019,-500.0,0.00011369,2]
[348719866,1736748652029,-413.96392957,0.00011369,2]
[348719867,1736748652039,-828.54,0.00011369,2]
[348719868,1736748652049,-1242.39,0.00011369,2]
[348719869,1736748652059,-500.0,0.00011369,2]
[348719870,1736748652069,-1005.42,0.00011369,2]
[348719871,1736748652078,-1234.58,0.00011369,2]
[348719872,1736748652087,-1033.53,0.00011369,2]
[348719873,1736748652097,-844.52,0.00011369,2]
[348719874,1736748652107,-500.0,0.00011369,2]
[348719875,1736748652116,-1923.89,0.00011369,2]
[348719876,1736748652126,-827.39,0.00011369,2]
[348719877,1736748652135,-150.73,0.00011369,2]
[348719878,1736748652145,-1041.03,0.00011453,2]
[348719879,1736748652154,-616.42,0.0001147,2]
[348719880,1736748652164,-847.96,0.0001147,2]
[348719881,1736748652173,-3583.81,0.0001147,2]
[348719882,1736748652183,-500.0,0.0001147,2]
[348719883,1736748652192,-500.0,0.0001147,2]
[348719884,1736748652203,-690.81,0.0001147,2]
[348719885,1736748652213,-1173.49,0.0001147,2]
[348719886,1736748652222,-1307.94,0.0001147,2]
[348719887,1736748652231,-2121.67,0.0001147,2]
[348719888,1736748652241,-500.0,0.0001147,2]
[348719889,1736748652251,-588.81,0.0001147,2]
[348719890,1736748652260,-511.26,0.0001147,2]
[348719891,1736748652269,-929.02,0.0001147,2]
[348719892,1736748652279,-1095.98,0.0001147,2]
[348719893,1736748652288,-831.36,0.0001147,2]
[348719894,1736748652298,-1591.75,0.0001147,2]
[348719895,1736748652308,-556.16417384,0.0001147,2]
[348719896,1736748652318,-749.68,0.0001147,2]
[348719897,1736748652327,-749.66,0.00011477,2]
[348719898,1736748652340,-617.27,0.00011477,2]
[348719899,1736748652350,-500.0,0.00011477,2]
[348719900,1736748652359,-862.85,0.00011477,2]
[348719901,1736748652371,-500.0,0.00011477,2]
[348719902,1736748652380,-663.9,0.00011478,2]
[348719903,1736748652390,-1000.0,0.00011495,2]
[348719904,1736748652399,-2751.0,0.00011507,2]
[348719905,1736748652411,-1534.95,0.0001164,2]
[348719906,1736748652423,-793.85,0.0001164,2]
[348719907,1736748652432,-613.27,0.0001164,2]
[348719908,1736748652442,-1839.74,0.0001164,2]
[348719909,1736748652452,-588.59,0.0001164,2]
[348719910,1736748652461,-1179.2,0.0001164,2]
[348719911,1736748652472,-500.0,0.0001164,2]
[348719912,1736748652482,-561.11,0.0001164,2]
[348719913,1736748652492,-500.0,0.0001164,2]
[348719914,1736748652501,-1479.56,0.0001164,2]
[348719915,1736748652510,-585.79,0.00011641,2]
[348719916,1736748652519,-500.0,0.00011641,2]
[348719917,1736748652528,-500.0,0.00011641,2]
[348719918,1736748652538,-500.0,0.00011641,2]
[348719919,1736748652547,-500.0,0.00011641,2]
[348719920,1736748652557,-500.0,0.00011641,2]
[348719921,1736748652566,-500.0,0.00011641,2]
[348719922,1736748652575,-500.0,0.00011641,2]
[348719923,1736748652584,-500.0,0.00011641,2]
[348719924,1736748652594,-500.0,0.00011641,2]
[348719925,1736748652603,-500.0,0.00011641,2]
[348719926,1736748652613,-500.0,0.00011641,2]
[348719927,1736748652622,-500.0,0.00011641,2]
[348719928,1736748652631,-500.0,0.00011641,2]
[348719929,1736748652641,-500.0,0.00011641,2]
[348719930,1736748652651,-500.0,0.00011641,2]
[348719931,1736748652661,-500.0,0.00011641,2]
[348719932,1736748652673,-500.0,0.00011641,2]
[348719933,1736748652682,-500.0,0.00011641,2]
[348719934,1736748652691,-500.0,0.00011641,2]
[348719935,1736748652700,-500.0,0.00011641,2]
[348719936,1736748652710,-500.0,0.00011641,2]
[348719937,1736748652719,-500.0,0.00011641,2]
[348719938,1736748652729,-500.0,0.00011641,2]
[348719939,1736748652738,-510.22,0.00011641,2]
[348719940,1736748652748,-500.0,0.00011641,2]
[348719941,1736748652757,-500.0,0.00011641,2]
[348719942,1736748652766,-500.0,0.00011641,2]
[348719943,1736748652776,-500.0,0.00011641,2]
[348719944,1736748652785,-500.0,0.00011641,2]
[348719945,1736748652795,-500.0,0.00011641,2]
[348719946,1736748652804,-500.0,0.00011641,2]
[348719947,1736748652813,-500.0,0.00011641,2]
[348719948,1736748652823,-500.0,0.00011641,2]
[348719949,1736748652832,-500.0,0.00011641,2]
[348719950,1736748652841,-2499.79,0.00011641,2]
[348719951,1736748652851,-500.0,0.00011641,2]
[348719952,1736748652861,-500.0,0.00011641,2]
[348719953,1736748652870,-500.0,0.00011641,2]
[348719954,1736748652879,-1971.39,0.00011641,2]
[348719955,1736748652889,-500.0,0.00011641,2]
[348719956,1736748652898,-500.0,0.00011641,2]
[348719957,1736748652907,-500.0,0.00011641,2]
[348719958,1736748652917,-500.0,0.00011641,2]
[348719959,1736748652927,-500.0,0.00011641,2]
[348719960,1736748652936,-1760.49,0.00011641,2]
[348719961,1736748652946,-500.0,0.00011641,2]
[348719962,1736748652955,-500.0,0.00011641,2]
[348719963,1736748652964,-500.0,0.00011641,2]
[348719964,1736748652974,-1774.52,0.00011641,2]
[348719965,1736748652984,-510.2340983,0.00011641,2]
[348719966,1736748652994,-500.0,0.00011641,2]
[348719967,1736748653003,-500.0,0.00011641,2]
[348719968,1736748653013,-500.0,0.00011641,2]
[348719969,1736748653022,-500.0,0.00011641,2]
[348719970,1736748653078,-401.20976809,0.00011641,2]
[348719971,1736748653089,-512.56,0.00011641,2]
[348719972,1736748653099,-500.0,0.00011641,2]
[348719973,1736748653109,-500.0,0.00011641,2]
[348719974,1736748653118,-500.0,0.00011641,2]
[348719975,1736748653128,-825.62,0.00011642,2]
[348719976,1736748653138,-535.55,0.00011642,2]
[348719977,1736748653148,-656.21,0.00011642,2]
[348719978,1736748653158,-831.27,0.00011642,2]
[348719979,1736748653167,-1120.56,0.00011642,2]
[348719980,1736748653176,-848.83,0.00011642,2]
[348719981,1736748653186,-2057.32,0.00011642,2]
[348719982,1736748653195,-500.0,0.00011642,2]
[348719983,1736748653204,-847.54,0.00011642,2]
[348719984,1736748653213,-1444.9,0.00011642,2]
[348719985,1736748653223,-766.22,0.00011642,2]
[348719986,1736748653232,-683.38,0.00011642,2]
[348719987,1736748653241,-921.56,0.00011642,2]
[348719988,1736748653251,-822.29,0.00011642,2]
[348719989,1736748653261,-835.42,0.00011642,2]
[348719990,1736748653270,-773.09,0.00011642,2]
[348719991,1736748653279,-673.28,0.00011642,2]
[348719992,1736748653288,-1437.23,0.00011642,2]
[348719993,1736748653297,-1973.53,0.00011642,2]
[348719994,1736748653306,-613.73,0.00011642,2]
[348719995,1736748653315,-968.03,0.00011642,2]
[348719996,1736748653324,-1992.94,0.00011642,2]
[348719997,1736748653337,-500.0,0.00011642,2]
[348719998,1736748653347,-2274.16,0.00011642,2]
[348719999,1736748653357,-717.623348,0.00011642,2]
[348720000,1736748653366,-709.26,0.00011642,2]
[348720001,1736748653374,-1904.22,0.00011642,2]
[348720002,1736748653385,-781.01624,0.00011642,2]
[348720003,1736748653394,-556.88,0.00011642,2]
[348720004,1736748653404,-500.0,0.00011642,2]
[348720005,1736748653414,-1234.36,0.00011642,2]
[348720006,1736748653425,-500.0,0.00011642,2]
[348720007,1736748653435,-500.0,0.00011642,2]
[348720008,1736748653443,-500.0,0.00011642,2]
[348720009,1736748653452,-1497.61,0.00011642,2]
[348720010,1736748653461,-761.58,0.00011642,2]
[348720011,1736748653470,-1943.01,0.00011642,2]
[348720012,1736748653479,-599.84,0.00011642,2]
[348720013,1736748653489,-500.26,0.00011643,2]
[348720014,1736748653498,-500.0,0.00011643,2]
[348720015,1736748653507,-579.06,0.00011643,2]
[348720016,1736748653515,-500.0,0.00011643,2]
[348720017,1736748653525,-538.74,0.00011643,2]
[348720018,1736748653534,-500.0,0.00011643,2]
[348720019,1736748653543,-593.16,0.00011643,2]
[348720020,1736748653552,-500.0,0.00011643,2]
[348720021,1736748653561,-561.03,0.00011643,2]
[348720022,1736748653570,-545.75,0.00011643,2]
[348720023,1736748653579,-598.34,0.00011643,2]
[348720024,1736748653588,-557.95,0.00011643,2]
[348720025,1736748653597,-567.25,0.00011643,2]
[348720026,1736748653606,-500.0,0.00011643,2]
[348720027,1736748653615,-2860.34,0.00011643,2]
[348720028,1736748653625,-690.58,0.00011643,2]
[348720029,1736748653634,-500.0,0.00011643,2]
[348720030,1736748653643,-656.31,0.00011643,2]
[348720031,1736748653652,-672.9,0.00011643,2]
[348720032,1736748653661,-500.0,0.00011643,2]
[348720033,1736748653672,-500.0,0.00011643,2]
[348720034,1736748653681,-500.0,0.00011643,2]
[348720035,1736748653690,-828.54,0.00011643,2]
[348720036,1736748653699,-1242.39,0.00011643,2]
[348720037,1736748653707,-500.0,0.00011643,2]
[348720038,1736748653717,-1005.42,0.00011643,2]
[348720039,1736748653726,-1234.58,0.00011643,2]
[348720040,1736748653735,-1033.53,0.00011643,2]
[348720041,1736748653744,-844.52,0.00011643,2]
[348720042,1736748653754,-500.0,0.00011643,2]
[348720043,1736748653763,-1923.89,0.00011643,2]
[348720044,1736748653772,-827.39,0.00011643,2]
[348720045,1736748653781,-158.39,0.0001166,2]
[348720046,1736748653790,-616.42,0.00011744,2]
[348720047,1736748653799,-847.96,0.00011744,2]
[348720048,1736748653809,-3583.81,0.00011744,2]
[348720049,1736748653818,-500.0,0.00011744,2]
[348720050,1736748653827,-500.0,0.00011744,2]
[348720051,1736748653837,-690.81,0.00011744,2]
[348720052,1736748653846,-1173.49,0.00011744,2]
[348720053,1736748653855,-1307.94,0.00011744,2]
[348720054,1736748653865,-2121.67,0.00011744,2]
[348720055,1736748653874,-500.0,0.00011744,2]
[348720056,1736748653883,-588.81,0.00011744,2]
[348720057,1736748653892,-511.26,0.00011744,2]
[348720058,1736748653901,-929.02,0.00011744,2]
[348720059,1736748653910,-1095.98,0.00011744,2]
[348720060,1736748653920,-831.36,0.00011744,2]
[348720061,1736748653929,-1591.75,0.00011744,2]
[348720062,1736748653939,-749.68,0.00011744,2]
[348720063,1736748653947,-749.66,0.00011751,2]
[348720064,1736748653956,-617.27,0.00011751,2]
[348720065,1736748653965,-500.0,0.00011751,2]
[348720066,1736748653974,-862.85,0.00011751,2]
[348720067,1736748653984,-500.0,0.00011751,2]
[348720068,1736748653993,-663.9,0.00011752,2]
[348720069,1736748654002,-1534.95,0.00011914,2]
[348720070,1736748654011,-793.85,0.00011914,2]
[348720071,1736748654020,-613.27,0.00011914,2]
[348720072,1736748654029,-1839.74,0.00011914,2]
[348720073,1736748654038,-588.59,0.00011914,2]
[348720074,1736748654048,-1179.2,0.00011914,2]
[348720075,1736748654056,-500.0,0.00011914,2]
[348720076,1736748654066,-561.11,0.00011914,2]
[348720077,1736748654075,-500.0,0.00011914,2]
[348720078,1736748654084,-1479.56,0.00011914,2]
[348720079,1736748654093,-585.79,0.00011915,2]
[348720080,1736748654102,-500.0,0.00011915,2]
[348720081,1736748654112,-500.0,0.00011915,2]
[348720082,1736748654121,-500.0,0.00011915,2]
[348720083,1736748654131,-500.0,0.00011915,2]
[348720084,1736748654140,-572.81265134,0.00011915,2]
[348720085,1736748654149,-500.0,0.00011915,2]
[348720086,1736748654159,-500.0,0.00011915,2]
[348720087,1736748654168,-500.0,0.00011915,2]
[348720088,1736748654177,-500.0,0.00011915,2]
[348720089,1736748654186,-500.0,0.00011915,2]
[348720090,1736748654195,-500.0,0.00011915,2]
[348720091,1736748654203,-500.0,0.00011915,2]
[348720092,1736748654213,-500.0,0.00011915,2]
[348720093,1736748654222,-500.0,0.00011915,2]
[348720094,1736748654231,-500.0,0.00011915,2]
[348720095,1736748654240,-500.0,0.00011915,2]
[348720096,1736748654251,-500.0,0.00011915,2]
[348720097,1736748654261,-500.0,0.00011915,2]
[348720098,1736748654273,-500.0,0.00011915,2]
[348720099,1736748654282,-500.0,0.00011915,2]
[348720100,1736748654291,-500.0,0.00011915,2]
[348720101,1736748654300,-500.0,0.00011915,2]
[348720102,1736748654309,-500.0,0.00011915,2]
[348720103,1736748654321,-510.22,0.00011915,2]
[348720104,1736748654334,-507.77,0.00011915,2]
[348720105,1736748654344,-500.0,0.00011915,2]
[348720106,1736748654354,-500.0,0.00011915,2]
[348720107,1736748654366,-500.0,0.00011915,2]
[348720108,1736748654376,-500.0,0.00011915,2]
[348720109,1736748654386,-500.0,0.00011915,2]
[348720110,1736748654396,-500.0,0.00011915,2]
[348720111,1736748654406,-500.0,0.00011915,2]
[348720112,1736748654416,-500.0,0.00011915,2]
[348720113,1736748654425,-516.9369737,0.00011915,2]
[348720114,1736748654434,-2499.79,0.00011915,2]
[348720115,1736748654444,-500.0,0.00011915,2]
[348720116,1736748654453,-500.0,0.00011915,2]
[348720117,1736748654462,-500.0,0.00011915,2]
[348720118,1736748654471,-1971.39,0.00011915,2]
[348720119,1736748654481,-500.0,0.00011915,2]
[348720120,1736748654492,-500.0,0.00011915,2]
[348720121,1736748654503,-500.0,0.00011915,2]
[348720122,1736748654515,-500.0,0.00011915,2]
[348720123,1736748654524,-500.0,0.00011915,2]
[348720124,1736748654533,-1760.49,0.00011915,2]
[348720125,1736748654543,-500.0,0.00011915,2]
[348720126,1736748654552,-500.0,0.00011915,2]
[348720127,1736748654563,-500.0,0.00011915,2]
[348720128,1736748654573,-1774.52,0.00011915,2]
[348720129,1736748654583,-500.0,0.00011915,2]
[348720130,1736748654592,-500.0,0.00011915,2]
[348720131,1736748654601,-500.0,0.00011915,2]
[348720132,1736748654611,-500.0,0.00011915,2]
[348720133,1736748654621,-512.56,0.00011915,2]
[348720134,1736748654630,-500.0,0.00011915,2]
[348720135,1736748654639,-562.69155004,0.00011915,2]
[348720136,1736748654649,-500.0,0.00011915,2]
[348720137,1736748654658,-825.62,0.00011916,2]
[348720138,1736748654667,-535.55,0.00011916,2]
[348720139,1736748654677,-656.21,0.00011916,2]
[348720140,1736748654687,-831.27,0.00011916,2]
[348720141,1736748654695,-1120.56,0.00011916,2]
[348720142,1736748654706,-848.83,0.00011916,2]
[348720143,1736748654715,-2057.32,0.00011916,2]
[348720144,1736748654724,-500.0,0.00011916,2]
[348720145,1736748654734,-847.54,0.00011916,2]
[348720146,1736748654743,-1444.9,0.00011916,2]
[348720147,1736748654752,-766.22,0.00011916,2]
[348720148,1736748654761,-683.38,0.00011916,2]
[348720149,1736748654770,-921.56,0.00011916,2]
[348720150,1736748654779,-822.29,0.00011916,2]
[348720151,1736748654788,-835.42,0.00011916,2]
[348720152,1736748654797,-773.09,0.00011916,2]